Cogmind - Beta 14 @@@ ROGUE MODE // 2024.11.26 @ 16:48:36 Player: MarKhan Result: Destroyed by S-43 Plague with Heavy Machine Gun Performance ------------- Evolutions (7) 3500 Regions Visited (12) 2400 Robots Destroyed (0) 0 Value Destroyed (0) 0 Prototype IDs (12) 240 Alien Tech Used (0) 0 Bonus (4096) 4096 TOTAL SCORE: 10236 Bonus ------- Pacifist 3230 Follower Combat Kills 66 Entered DSFs 500 Registered with UFD 300 Cogmind --------- Core Integrity 0/1300 Matter 134/300 Energy 99/100 System Corruption 1% Temperature Cool (0) Movement Core (50) Location -3/Research Parts ------- > --- POWER (1) -------- (None) > --- PROPULSION (2) --- (None) > --- UTILITY (2) ------ (None) > --- WEAPON (16) ------ (None) > --- INVENTORY (5) ---- (None) Peak State ------------ None Favorites ----------- Power None Propulsion None Utility None Weapon None Build | -11 -10 -9 -9 -9 -9 -6 -5 -5 -4 -4 -4 -3 ------- Run | Yrd Mat Mat Sto Rec Scr Fac Fac DSF Fac Upp Upp Res Slots Evolved 14 | . . 2 . . . 6 2 . 2 . . 2 Power . | . . . . . . . . . . . . . Propulsion . | . . . . . . . . . . . . . Utility . | . . . . . . . . . . . . . Weapon 14 | . . 2 . . . 6 2 . 2 . . 2 Parts Attached . | . . . . . . . . . . . . . Power . | . . . . . . . . . . . . . Engine . | . . . . . . . . . . . . . Core . | . . . . . . . . . . . . . Reactor . | . . . . . . . . . . . . . Propulsion . | . . . . . . . . . . . . . Treads . | . . . . . . . . . . . . . Leg . | . . . . . . . . . . . . . Wheel . | . . . . . . . . . . . . . Hover . | . . . . . . . . . . . . . Flight . | . . . . . . . . . . . . . Utility . | . . . . . . . . . . . . . Device . | . . . . . . . . . . . . . Storage . | . . . . . . . . . . . . . Processor . | . . . . . . . . . . . . . Hackware . | . . . . . . . . . . . . . Protection . | . . . . . . . . . . . . . Artifact . | . . . . . . . . . . . . . Weapon . | . . . . . . . . . . . . . Energy Gun . | . . . . . . . . . . . . . Energy Cannon . | . . . . . . . . . . . . . Ballistic Gun . | . . . . . . . . . . . . . Ballistic Cannon . | . . . . . . . . . . . . . Launcher . | . . . . . . . . . . . . . Special Weapon . | . . . . . . . . . . . . . Impact Weapon . | . . . . . . . . . . . . . Slashing Weapon . | . . . . . . . . . . . . . Piercing Weapon . | . . . . . . . . . . . . . Special Melee Weapon . | . . . . . . . . . . . . . Unidentified Prototypes . | . . . . . . . . . . . . . Parts Lost . | . . . . . . . . . . . . . Power . | . . . . . . . . . . . . . Propulsion . | . . . . . . . . . . . . . Utility . | . . . . . . . . . . . . . Weapon . | . . . . . . . . . . . . . Highest Loss Streak . | . . . . . . . . . . . . . To Critical Strikes . | . . . . . . . . . . . . . Average Slot Usage (%) . | . . . . . . . . . . . . . Peak Build Rating . | . . . . . . . . . . . . . Average Rating . | . . . . . . . . . . . . . On Entrance . | . . . . . . . . . . . . . Naked Turns 1424 | . 26 38 116 298 362 107 48 48 83 118 25 155 Heaviest Build . | . . . . . . . . . . . . . Greatest Support 3 | 3 3 3 3 3 3 3 3 3 3 3 3 3 Greatest Overweight (x) . | . . . . . . . . . . . . . Average Overweight (x) . | . . . . . . . . . . . . . Largest Inventory Capacity 5 | 5 5 5 5 5 5 5 5 5 5 5 5 5 Average Capacity 5 | 5 5 5 5 5 5 5 5 5 5 5 5 5 Most Carried . | . . . . . . . . . . . . . Average Carried . | . . . . . . . . . . . . . Final Capacity 5 | 5 5 5 5 5 5 5 5 5 5 5 5 5 Final Carried . | . . . . . . . . . . . . . Class Distribution -------------------- 96% | Mutant 3% | Commander-Mutant Dominant Class ---------------- Mutant | -10/Materials Mutant | -9/Materials Commander-Mutant | -9/Storage Mutant | -9/Recycling Mutant | -9/Scraptown Mutant | -6/Factory Mutant | -5/Factory Mutant | -5/DSF Mutant | -4/Factory Mutant | -4/Upper Caves Mutant | -4/Upper Caves Mutant | -3/Research Resources | -11 -10 -9 -9 -9 -9 -6 -5 -5 -4 -4 -4 -3 ----------- Run | Yrd Mat Mat Sto Rec Scr Fac Fac DSF Fac Upp Upp Res Matter Collected . | . . . . . . . . . . . . . Remotely . | . . . . . . . . . . . . . Salvage Created . | . . . . . . . . . . . . . Parts . | . . . . . . . . . . . . . Haulers Intercepted . | . . . . . . . . . . . . . Recyclers Shooed . | . . . . . . . . . . . . . Parts Field Recycled . | . . . . . . . . . . . . . Retrieved Matter . | . . . . . . . . . . . . . Parts Self-Destructed 7 | . . . . . . . . . . 7 . . Prevented . | . . . . . . . . . . . . . Kills | -11 -10 -9 -9 -9 -9 -6 -5 -5 -4 -4 -4 -3 ------- Run | Yrd Mat Mat Sto Rec Scr Fac Fac DSF Fac Upp Upp Res Combat Hostiles Destroyed . | . . . . . . . . . . . . . Classes Destroyed . | . . . . . . . . . . . . . Best Kill Streak . | . . . . . . . . . . . . . Combat Bots Only . | . . . . . . . . . . . . . Max Kills in Single Turn . | . . . . . . . . . . . . . Gunslinging . | . . . . . . . . . . . . . Exploded . | . . . . . . . . . . . . . Melee . | . . . . . . . . . . . . . Uniques/NPCs Destroyed . | . . . . . . . . . . . . . Combat | -11 -10 -9 -9 -9 -9 -6 -5 -5 -4 -4 -4 -3 -------- Run | Yrd Mat Mat Sto Rec Scr Fac Fac DSF Fac Upp Upp Res Hostile Shots Fired 243 | . 20 2 29 . . 23 . 42 3 21 . 103 Missed 97 | . 9 2 10 . . 8 . 11 1 10 . 46 Damage Taken 2745 | . 144 . 269 . . 223 . 571 59 163 . 1316 Core 2745 | . 144 . 269 . . 223 . 571 59 163 . 1316 Absorbed by Shields 54 | . . . . . . . . 54 . . . . Core Remaining (%) 61 | 100 42 . . . 32 73 . 42 . . 80 . Volleys Fired . | . . . . . . . . . . . . . Largest . | . . . . . . . . . . . . . Hottest . | . . . . . . . . . . . . . Shots Fired . | . . . . . . . . . . . . . Gun . | . . . . . . . . . . . . . Cannon . | . . . . . . . . . . . . . Launcher . | . . . . . . . . . . . . . Special . | . . . . . . . . . . . . . Kinetic . | . . . . . . . . . . . . . Thermal . | . . . . . . . . . . . . . Explosive . | . . . . . . . . . . . . . Electromagnetic . | . . . . . . . . . . . . . Robot Hit Streak . | . . . . . . . . . . . . . Robot Miss Streak . | . . . . . . . . . . . . . Penetration Max . | . . . . . . . . . . . . . Secondary Targets . | . . . . . . . . . . . . . Shots Hit Robots . | . . . . . . . . . . . . . Core Hits 1 | . . . 1 . . . . . . . . . Critical Kills . | . . . . . . . . . . . . . Critical Parts Destroyed . | . . . . . . . . . . . . . Critical Strikes . | . . . . . . . . . . . . . Melee Attacks . | . . . . . . . . . . . . . Impact . | . . . . . . . . . . . . . Slashing . | . . . . . . . . . . . . . Piercing . | . . . . . . . . . . . . . Sneak Attacks . | . . . . . . . . . . . . . Combat Hostiles . | . . . . . . . . . . . . . Follow-up Attacks . | . . . . . . . . . . . . . Damage Inflicted 45 | . . . 26 . . . . . . . . 19 Guns . | . . . . . . . . . . . . . Cannons . | . . . . . . . . . . . . . Explosions . | . . . . . . . . . . . . . Melee . | . . . . . . . . . . . . . Ramming 45 | . . . 26 . . . . . . . . 19 Kinetic . | . . . . . . . . . . . . . Thermal . | . . . . . . . . . . . . . Explosive . | . . . . . . . . . . . . . Electromagnetic . | . . . . . . . . . . . . . Impact . | . . . . . . . . . . . . . Slashing . | . . . . . . . . . . . . . Piercing . | . . . . . . . . . . . . . Highest Corruption 2 | . . . 2 2 2 . . . . . . 1 Average Corruption 1 | . . . 2 2 2 . . . . . . 1 Corruption Purged . | . . . . . . . . . . . . . Corruption Blocked . | . . . . . . . . . . . . . Effects 4 | . . . 1 3 . . . . . . . . Message Errors 2 | . . . 1 1 . . . . . . . . Energy Discharges 2 | . . . . 2 . . . . . . . . Overload Shots . | . . . . . . . . . . . . . Overflow Damage . | . . . . . . . . . . . . . Projectiles . | . . . . . . . . . . . . . Explosions . | . . . . . . . . . . . . . Melee . | . . . . . . . . . . . . . Knockbacks . | . . . . . . . . . . . . . Impact . | . . . . . . . . . . . . . Kinetic . | . . . . . . . . . . . . . Secondary . | . . . . . . . . . . . . . Self-Inflicted Damage 21 | . . . 12 . . . . . . . . 9 Shots . | . . . . . . . . . . . . . Rammed 9 | . . . 7 . . . . . . . . 2 Targets Rammed 9 | . . . 7 . . . . . . . . 2 Kicked . | . . . . . . . . . . . . . Crushed . | . . . . . . . . . . . . . Highest Temperature . | . . . . . . . . . . . . . Average Temperature . | . . . . . . . . . . . . . Received Heat Transfer 383 | . 75 . 129 . . 36 . 116 . . . 27 Siege Activations . | . . . . . . . . . . . . . Robots Corrupted . | . . . . . . . . . . . . . Combat Hostiles . | . . . . . . . . . . . . . Parts Fried . | . . . . . . . . . . . . . Impact Corruptions . | . . . . . . . . . . . . . Robots Melted . | . . . . . . . . . . . . . Combat Hostiles . | . . . . . . . . . . . . . Parts Melted . | . . . . . . . . . . . . . Heat Transferred . | . . . . . . . . . . . . . Parts Sabotaged . | . . . . . . . . . . . . . Parts Stolen . | . . . . . . . . . . . . . Parts Stripped . | . . . . . . . . . . . . . Power Chain Reactions . | . . . . . . . . . . . . . Alert | -11 -10 -9 -9 -9 -9 -6 -5 -5 -4 -4 -4 -3 ------- Run | Yrd Mat Mat Sto Rec Scr Fac Fac DSF Fac Upp Upp Res Peak Influence 243 | . 30 12 243 113 . 158 77 87 64 . . 148 Initial 86 | . . 12 4 86 . . 77 57 45 . . 28 Average 78 | . 19 12 122 107 . 66 77 62 50 . . 49 Maximum Alert Level 1 | . . . 1 . . . . . . . . . Low Security (%) 97 | 100 100 100 78 100 . 100 100 100 100 . . 100 Level 1 2 | . . . 21 . . . . . . . . . Level 2 . | . . . . . . . . . . . . . Level 3 . | . . . . . . . . . . . . . Level 4 . | . . . . . . . . . . . . . Level 5 . | . . . . . . . . . . . . . High Security . | . . . . . . . . . . . . . Max Security . | . . . . . . . . . . . . . Squads Dispatched 8 | . 1 . 2 . . 3 . 1 . . . 1 Investigation 3 | . . . . . . 2 . . . . . 1 Extermination . | . . . . . . . . . . . . . Reinforcement 5 | . 1 . 2 . . 1 . 1 . . . . Assault . | . . . . . . . . . . . . . Garrison . | . . . . . . . . . . . . . Intercept . | . . . . . . . . . . . . . Searches Triggered . | . . . . . . . . . . . . . Construction Impeded . | . . . . . . . . . . . . . Haulers Reinforced . | . . . . . . . . . . . . . Active Scanning Responses . | . . . . . . . . . . . . . Cargo Convoy Interrupts . | . . . . . . . . . . . . . Stealth | -11 -10 -9 -9 -9 -9 -6 -5 -5 -4 -4 -4 -3 --------- Run | Yrd Mat Mat Sto Rec Scr Fac Fac DSF Fac Upp Upp Res Distress Signals 6 | . . 1 4 . . . . . 1 . . . Communications Jammed . | . . . . . . . . . . . . . Distress Signals . | . . . . . . . . . . . . . Times Spotted 72 | . 8 4 12 . . 12 . 7 3 5 . 21 Peak Tracking Total 14 | . 7 4 7 . . 5 . 5 12 5 . 14 Tactical Retreats 6 | . . . . . . 2 . 1 . 1 . 2 Traps | -11 -10 -9 -9 -9 -9 -6 -5 -5 -4 -4 -4 -3 ------- Run | Yrd Mat Mat Sto Rec Scr Fac Fac DSF Fac Upp Upp Res Traps Triggered 1 | . . . . . . . . 1 . . . . Indirectly . | . . . . . . . . . . . . . Trap Hack Attempts . | . . . . . . . . . . . . . Triggered . | . . . . . . . . . . . . . Disarmed . | . . . . . . . . . . . . . Reprogrammed . | . . . . . . . . . . . . . Reused . | . . . . . . . . . . . . . Traps Extracted . | . . . . . . . . . . . . . Installed . | . . . . . . . . . . . . . Triggered 1 | . . . . . . . . . . 1 . . Machines | -11 -10 -9 -9 -9 -9 -6 -5 -5 -4 -4 -4 -3 ---------- Run | Yrd Mat Mat Sto Rec Scr Fac Fac DSF Fac Upp Upp Res Machines Disabled . | . . . . . . . . . . . . . Max in Single Turn . | . . . . . . . . . . . . . Machines Repaired . | . . . . . . . . . . . . . Machines Dismantled . | . . . . . . . . . . . . . Machines Sabotaged . | . . . . . . . . . . . . . Overloaded Fab Kills . | . . . . . . . . . . . . . Hacking | -11 -10 -9 -9 -9 -9 -6 -5 -5 -4 -4 -4 -3 --------- Run | Yrd Mat Mat Sto Rec Scr Fac Fac DSF Fac Upp Upp Res Machines Accessed 21 | . . . 2 5 7 3 1 . 2 . . 1 Terminals 12 | . . . 2 5 . 2 1 . 1 . . 1 Fabricators 1 | . . . . . . . . . 1 . . . Repair Stations . | . . . . . . . . . . . . . Recycling Units 1 | . . . . . . 1 . . . . . . Scanalyzers . | . . . . . . . . . . . . . Garrison Access . | . . . . . . . . . . . . . Total Hacks 65 | . . . 5 17 23 6 1 . 10 . . 3 Successful 43 | . . . 1 10 23 3 1 . 5 . . . Failed 22 | . . . 4 7 . 3 . . 5 . . 3 Catastrophic 6 | . . . 3 1 . 1 . . 1 . . . Database Lockouts . | . . . . . . . . . . . . . Manual 23 | . . . 1 15 . 1 . . 6 . . . Terminals 35 | . . . 5 17 . 5 1 . 4 . . 3 Fabricators 6 | . . . . . . . . . 6 . . . Repair Stations . | . . . . . . . . . . . . . Recycling Units 1 | . . . . . . 1 . . . . . . Scanalyzers . | . . . . . . . . . . . . . Garrison Access . | . . . . . . . . . . . . . Terminal Hacks 31 | . . . 1 3 23 2 1 . 1 . . . Record 21 | . . . . . 21 . . . . . . . Open Door 1 | . . . . . 1 . . . . . . . Open DSF 2 | . . . . . . 1 1 . . . . . Level Access Points 1 | . . . . . . 1 . . . . . . Emergency Access Points 1 | . . . . . . . . . 1 . . . Terminal Index 1 | . . . . 1 . . . . . . . . Zone Layout 3 | . . . 1 2 . . . . . . . . Derelict Proto ID Bank 1 | . . . . . 1 . . . . . . . Fabricator Hacks . | . . . . . . . . . . . . . Repair Station Hacks . | . . . . . . . . . . . . . Recycling Unit Hacks . | . . . . . . . . . . . . . Scanalyzer . | . . . . . . . . . . . . . Garrison Access Hacks . | . . . . . . . . . . . . . Unauthorized Hacks 12 | . . . . 7 . 1 . . 4 . . . Terminals 9 | . . . . 7 . . . . 2 . . . Botnet 3 | . . . . 2 . . . . 1 . . . Skim 6 | . . . . 5 . . . . 1 . . . Fabricators 2 | . . . . . . . . . 2 . . . Liberate 1 | . . . . . . . . . 1 . . . Haulers 1 | . . . . . . . . . 1 . . . Repair Stations 1 | . . . . . . 1 . . . . . . Recycling Units . | . . . . . . . . . . . . . Fedlink 1 | . . . . . . 1 . . . . . . Scanalyzers . | . . . . . . . . . . . . . Garrison Access . | . . . . . . . . . . . . . Data Cores Recovered . | . . . . . . . . . . . . . Used . | . . . . . . . . . . . . . Hacking Detections 11 | . . . 1 5 . 2 . . 2 . . 1 Full Trace Events 3 | . . . 1 . . 1 . . . . . 1 Feedback Events 1 | . . . . . . . . . . . . 1 Corruption 1 | . . . . . . . . . . . . 1 Feedback Blocked . | . . . . . . . . . . . . . Robot Schematics Acquired . | . . . . . . . . . . . . . Robots Built . | . . . . . . . . . . . . . Authchips . | . . . . . . . . . . . . . Time . | . . . . . . . . . . . . . Total Robot Build Rating . | . . . . . . . . . . . . . Part Schematics Acquired . | . . . . . . . . . . . . . Parts Built . | . . . . . . . . . . . . . Authchips . | . . . . . . . . . . . . . Time . | . . . . . . . . . . . . . Total Part Build Rating . | . . . . . . . . . . . . . Parts Repaired . | . . . . . . . . . . . . . Time . | . . . . . . . . . . . . . Parts Recycled . | . . . . . . . . . . . . . Recycled Matter . | . . . . . . . . . . . . . Retrieved Matter . | . . . . . . . . . . . . . Retrieved Components . | . . . . . . . . . . . . . Parts Scanalyzed . | . . . . . . . . . . . . . Part Schematics Acquired . | . . . . . . . . . . . . . Parts Damaged . | . . . . . . . . . . . . . Bothacking | -11 -10 -9 -9 -9 -9 -6 -5 -5 -4 -4 -4 -3 ------------ Run | Yrd Mat Mat Sto Rec Scr Fac Fac DSF Fac Upp Upp Res Used RIF Installer . | . . . . . . . . . . . . . Robots Hacked . | . . . . . . . . . . . . . Non-combat . | . . . . . . . . . . . . . Combat . | . . . . . . . . . . . . . Robot Hacks Applied . | . . . . . . . . . . . . . Relay Couplers Released . | . . . . . . . . . . . . . Fabnet Peak Effective % . | . . . . . . . . . . . . . Robots Rewired 1 | . . . 1 . . . . . . . . . Allies Hacked . | . . . . . . . . . . . . . Hacks Repelled . | . . . . . . . . . . . . . Allies | -11 -10 -9 -9 -9 -9 -6 -5 -5 -4 -4 -4 -3 -------- Run | Yrd Mat Mat Sto Rec Scr Fac Fac DSF Fac Upp Upp Res Total Allies 10 | . . . 10 . . . . . . . . . Largest Group 10 | . . . 10 . . . . . . . . . Highest-Rated Group 88 | . . . 88 . . . . . . . . . Highest-Rated Ally 16 | . . . 16 . . . . . . . . . Total Orders . | . . . . . . . . . . . . . Ally Attacks 31 | . . . 31 . . . . . . . . . Total Damage 258 | . . . 258 . . . . . . . . . Kills 5 | . . . 5 . . . . . . . . . Allies Corrupted . | . . . . . . . . . . . . . Allies Melted . | . . . . . . . . . . . . . Intel | -11 -10 -9 -9 -9 -9 -6 -5 -5 -4 -4 -4 -3 ------- Run | Yrd Mat Mat Sto Rec Scr Fac Fac DSF Fac Upp Upp Res Robot Analysis Total . | . . . . . . . . . . . . . Derelict Logs Recovered 1 | . . . . . . . . . . 1 . . Drone Launches . | . . . . . . . . . . . . . Drone Recoveries . | . . . . . . . . . . . . . Exploration | -11 -10 -9 -9 -9 -9 -6 -5 -5 -4 -4 -4 -3 ------------- Run | Yrd Mat Mat Sto Rec Scr Fac Fac DSF Fac Upp Upp Res Turns Passed 1433 | 9 26 38 116 298 362 107 48 48 83 118 25 155 Spaces Moved 2502 | 18 51 75 211 291 724 213 94 84 158 236 50 297 Core 2502 | 18 51 75 211 291 724 213 94 84 158 236 50 297 Treads . | . . . . . . . . . . . . . Legs . | . . . . . . . . . . . . . Wheels . | . . . . . . . . . . . . . Hover . | . . . . . . . . . . . . . Flight . | . . . . . . . . . . . . . Fastest Speed 50 | 50 50 50 50 50 50 50 50 50 50 50 50 50 Average Speed 50 | 50 50 50 50 50 50 50 50 50 50 50 50 50 Slowest Speed 50 | 50 50 50 50 50 50 50 50 50 50 50 50 50 Overloaded Moves . | . . . . . . . . . . . . . Propulsion Burnouts . | . . . . . . . . . . . . . Robots Hopped . | . . . . . . . . . . . . . Cave-ins Triggered . | . . . . . . . . . . . . . Exploration Rate (%) 27 | 3 19 11 45 61 61 13 3 77 7 43 11 9 Regions Visited 12 Branch Regions 5 Pre-discovered Areas 2 | . . . . 2 . . . . . . . . Known Exits Taken 3 | . . . . 1 . 1 1 . . . . . Unknown Exits Taken 8 | 1 1 1 1 . 1 . . . 1 1 1 . Scrap Searched . | . . . . . . . . . . . . . Spaces Dug . | . . . . . . . . . . . . . Terrain Destroyed . | . . . . . . . . . . . . . Melee . | . . . . . . . . . . . . . Projectile . | . . . . . . . . . . . . . AOE . | . . . . . . . . . . . . . Terrain Rammed . | . . . . . . . . . . . . . Walls Destroyed . | . . . . . . . . . . . . . Machines Disabled . | . . . . . . . . . . . . . Actions | -11 -10 -9 -9 -9 -9 -6 -5 -5 -4 -4 -4 -3 --------- Run | Yrd Mat Mat Sto Rec Scr Fac Fac DSF Fac Upp Upp Res Total 2669 | 17 50 74 220 442 723 212 94 89 161 235 49 303 Wait 160 | . . . . 152 . . . . 4 . . 4 Move 2491 | 17 50 74 210 290 723 212 94 83 157 235 49 297 Hop . | . . . . . . . . . . . . . Pick Up . | . . . . . . . . . . . . . Fast Attach . | . . . . . . . . . . . . . Attach . | . . . . . . . . . . . . . Detach . | . . . . . . . . . . . . . Swap . | . . . . . . . . . . . . . Drop . | . . . . . . . . . . . . . Fire . | . . . . . . . . . . . . . Melee . | . . . . . . . . . . . . . Ram 9 | . . . 7 . . . . . . . . 2 Kick . | . . . . . . . . . . . . . Crush . | . . . . . . . . . . . . . Escape Stasis 6 | . . . . . . . . 6 . . . . Rewire 3 | . . . 3 . . . . . . . . . Trap . | . . . . . . . . . . . . . Miscellaneous . | . . . . . . . . . . . . . Route ------- -11/Scrapyard -10/Materials -9/Materials -9/Storage -9/Recycling (discovered 2 exits: [*Fac] / *Scr) -9/Scraptown -6/Factory (discovered 4 exits: *Fac x4) -5/Factory -5/DSF -4/Factory (discovered 2 exits: [*Upp] / [*Arm]) -4/Upper Caves -4/Upper Caves -3/Research (discovered 1 exit: Res) History --------- Turn | Location | Event 5 | -11/Scrapyard | Discovered new exit (range 12) 10 | -11/Scrapyard | Entered Materials 28 | -10/Materials | Discovered new exit (range 16) 35 | -10/Materials | Core integrity fell below 50% 36 | -10/Materials | Entered another Materials area 36 | -9/Materials | Evolved 2 slots: Weapon x2 66 | -9/Materials | Discovered new exit (range 15) 74 | -9/Materials | Entered Storage 122 | -9/Storage | Assisted by bots powering up and referring to "LRC-V3" 171 | -9/Storage | Core integrity fell below 50% 187 | -9/Storage | Used back door to open Recycling access 187 | -9/Storage | Discovered new exit (range 5) 190 | -9/Storage | Entered Recycling 283 | -9/Recycling | Discovered new exit (range 13) 343 | -9/Recycling | Scanned before Scraplab entrance 377 | -9/Recycling | Entered Scraplab 379 | -9/Recycling | Identified exit to Scraptown 407 | -9/Recycling | Learned location of 1 exit from Storage 426 | -9/Recycling | Learned Storage trap positions 437 | -9/Recycling | Learned Storage garrison access intel 439 | -9/Recycling | Learned location of Zion (-7) 440 | -9/Recycling | Learned location of Storage (-9) 441 | -9/Recycling | Learned Storage emergency access door positions 452 | -9/Recycling | Learned Materials security intel 474 | -9/Recycling | Learned 2 Storage zone layouts 476 | -9/Recycling | Build established: Mutant 488 | -9/Recycling | Entered Scraptown 490 | -9/Scraptown | System corruption cleaned by C-Scrubber 541 | -9/Scraptown | Visited UFD Registry 541 | -9/Scraptown | Registered with UFD as "Nukemech" 548 | -9/Scraptown | Visited SPCMW 559 | -9/Scraptown | Visited Junk Repository 584 | -9/Scraptown | Visited Cyclists 589 | -9/Scraptown | Entered Cyclist Reading Room 604 | -9/Scraptown | Visited CPS Storage 623 | -9/Scraptown | Visited A0-MCA Data Center 626 | -9/Scraptown | Given a B rating by A0-MCA 636 | -9/Scraptown | Visited Science Guys 689 | -9/Scraptown | Visited Infowarlord's Domain 728 | -9/Scraptown | Visited Sword Containment 741 | -9/Scraptown | Visited Chapter 10 757 | -9/Scraptown | Visited Science Testing Area 766 | -9/Scraptown | Visited Abandonware Association 771 | -9/Scraptown | Learned abandonware demo "HACKBUD.EXE" 786 | -9/Scraptown | Visited Modified Component R&D 848 | -9/Scraptown | Discovered new exit (range 5) 850 | -9/Scraptown | Entered Factory 850 | -6/Factory | Evolved 6 slots: Weapon x6 944 | -6/Factory | Identified exit to Factory 957 | -6/Factory | Entered another Factory area 957 | -5/Factory | Evolved 2 slots: Weapon x2 1005 | -5/Factory | Identified exit to DSF 1005 | -5/Factory | Entered DSF 1034 | -5/DSF | Additional patrols routed to DSF 1046 | -5/DSF | Core integrity fell below 50% 1046 | -5/DSF | Discovered new exit (range 15) 1053 | -5/DSF | Entered Factory 1053 | -4/Factory | Evolved 2 slots: Weapon x2 1118 | -4/Factory | Discovered new exit (range 12) 1129 | -4/Factory | Discovered new exit (range 15) 1136 | -4/Factory | Entered Upper Caves 1153 | -4/Upper Caves | Learned location of 1 exit from Research 1216 | -4/Upper Caves | Encountered a Warlord checkpoint 1252 | -4/Upper Caves | Discovered new exit (range 6) 1254 | -4/Upper Caves | Entered another Upper Caves area 1276 | -4/Upper Caves | Discovered new exit (range 7) 1279 | -4/Upper Caves | Entered Research 1279 | -3/Research | Evolved 2 slots: Weapon x2 1280 | -3/Research | Identified exit to Research 1404 | -3/Research | Core integrity fell below 50% 1421 | -3/Research | Core integrity fell below 20% 1434 | -3/Research | Destroyed by S-43 Plague with Heavy Machine Gun Last Messages --------------- lockdown mode. 01388_ Slug penetrates Terminal. 01388_ Slug penetrates Wall. 01391_ Penetrated by Slug. 01391_ Slug penetrates Wall. 01400_ Connecting with Terminal... 01400_ Current location identified: Research Feedback: System corruption (+1%). 01400_ ALERT: Suspicious activity at Terminal R008. Dispatching Investigation squad. 01400_ Penetrated by Slug. 01400_ Slug penetrates Terminal. 01403_ Slammed into S-43 Plague. 01418_ K-01 Serf destroyed. 01420_ Slug penetrates Wall. 01420_ Penetrated by Slug. 01420_ K-01 Serf collects debris. 01423_ Penetrated by Slug. 01426_ Slug penetrates Wall. 01427_ Penetrated by Slug. Map ----- +----------------------------------------------------+ | ?????????????????????# #?????????????????? | | ?????????????????????# #?????????????????? | | ?????????????????????# #?????????????????? | | ?????????????? ??????# #?????????????????? | | ????????????# ?????# /?????????????????? | | ????????????# ?????# #?????????????????? | | ????????????# != ????# #?????????????????? | | ????????????# != ????# ###+#+##??????????? | | ????????????# ! ???# #??????????? | | ????????????# ???# #??????????? | | ????????????# ??# #??????????? | | ??#?????????# ??# #??????????? | | ? #?????????# ?# ###### #??????????? | | #?????????# ?# g s#????# #??????????? | | #?????????# # sss#????# #??????????? | | #?????????# # #????# #??????????? | | #?????????# """ + g #????# #??????????? | | #?????????# """ ] #g ######/#######????? | | #?????????? """ # # #????? | | ???????????? ?# # ##???? | | ????????????# ?# # ""#??? | | #+######+############# # """" ""#??? | | %= # = """" ""#??? | | R = # """" S#??? | | k + """" ""#??? | | @# ""#??? | | #+####### T########### # ""???? | | ????????####?????????# # !! #????? | | ?????????????????????# # !! #????? | | ?????????????????????# # !! #????? | | ?????????????????????# ##############????? | | ?????????????????????# #?????????????????? | | ?????????????????????# #?????????????????? | | ?????????????????????# #?????????????????? | | ?????????????????????# #?????????????????? | | ?????????????????????# #?????????????????? | | ?????????????????????# ??????????????????? | | ?????????????????????+ ??????????????????? | | ?????????????????????# ??????????????????? | | ?????????????????????# ??????????????????? | | ??????????????????????? ??????????????????? | | ????????????????????????????????????????????? | | ????????????????????????????????????????????? | | ????????????????????????????????????????????? | | ????????????????????????????????????????????? | | ????????????????????????????????????????????? | | ????????????????????????????????????????????? | | ????????????????????????????????????????????? | | ????????????????????????????????????????????? | | ????????????????????????????????????????????? | +----------------------------------------------------+ Best States ------------- Heat Dissipation 46 Energy Generation 5 Energy Capacity 100 Matter Stores 134 Matter Capacity 300 Sight Range 16 Terrain Scan Density 10 Evasion (%) 50 Item Schematics ----------------- None Robot Schematics ------------------ None Fabricated ------------ Nothing Alien Tech Used ----------------- None Achievements -------------- None Challenges ------------ None Game ------ Seed ThrusterWarpMediator Manual? 0 Play Time 00:25:07 Cumulative 146.0 hours Start 2024.11.26 @ 16:24:02 End 2024.11.26 @ 16:48:36 Sessions 1 Manual Loads 0 Difficulty Rogue Special Mode None Game No. 147 Rogue 147 Adventurer 0 Explorer 0 Win Type - Total 3 Types 3/0/0/0/0/0/0/0/0 Lore% 59 Gallery% 58 Achievement% 55 Wizard Run 0 Options --------- Layout 1 ASCII 0 Keyboard 1 Movement Arrows Keybinds 0 Fullscreen 0 Font 20/Smallcaps Map View 50x35 Zoom Use 0% Tactical HUD 1 Map Filters NONE Filters NONE Steam 1 RUN: fa58f4e8-486c-49f9-93ad-1cff827a92ab